fUST/lending_fUST_20251010
["ID","MTS","AMOUNT","RATE_DAILY","PERIOD"]
[390527806,1760073054920,-151.0,0.000169,2]
[390527807,1760073054930,-151.0,0.000169,2]
[390527808,1760073054941,-1000.0,0.00016901,2]
[390527809,1760073054950,-1000.0,0.00016901,2]
[390527810,1760073054959,-678.5151,0.00016901,2]
[390527811,1760073054968,-500.0,0.00016973,2]
[390527812,1760073054978,-500.0,0.00016973,2]
[390527813,1760073054987,-500.0,0.00016973,2]
[390527814,1760073054997,-500.0,0.00016973,2]
[390527815,1760073055006,-642.55581265,0.00016973,2]
[390527816,1760073055015,-627.54677909,0.00016973,2]
[390527817,1760073055025,-500.0,0.00016973,2]
[390527818,1760073055035,-500.0,0.00016973,2]
[390527819,1760073055044,-500.0,0.00016973,2]
[390527820,1760073055054,-214.21809975,0.00016973,2]
[390527821,1760073055064,-501.05544168,0.00016973,2]
[390527822,1760073055075,-505.45386967,0.00016973,2]
[390527823,1760073055085,-165.24160476,0.00016973,2]
[390527824,1760073055095,-500.0,0.00016973,2]
[390527825,1760073055104,-501.28009836,0.00016973,2]
[390527826,1760073055114,-500.0,0.00016973,2]
[390527827,1760073055124,-498.33544719,0.00016973,2]
[390527828,1760073055133,-500.0,0.00016973,2]
[390527829,1760073055143,-500.0,0.00016973,2]
[390527830,1760073055152,-500.0,0.00016973,2]
[390527831,1760073055162,-500.0,0.00016973,2]
[390527832,1760073055172,-500.0,0.00016973,2]
[390527833,1760073055181,-500.0,0.00016973,2]
[390527834,1760073055190,-500.34845163,0.00016973,2]
[390527835,1760073055199,-500.0,0.00016973,2]
[390527836,1760073055209,-500.0,0.00016973,2]
[390527837,1760073055219,-500.0,0.00016973,2]
[390527838,1760073055229,-500.0,0.00016973,2]
[390527839,1760073055239,-500.0,0.00016973,2]
[390527840,1760073055249,-500.0,0.00016973,2]
[390527841,1760073055258,-500.0,0.00016973,2]
[390527842,1760073055268,-500.0,0.00016973,2]
[390527843,1760073055278,-500.0,0.00016973,2]
[390527844,1760073055287,-500.0,0.00016973,2]
[390527845,1760073055296,-500.0,0.00016973,2]
[390527846,1760073055306,-500.0,0.00016973,2]
[390527847,1760073055315,-500.0,0.00016973,2]
[390527848,1760073055325,-500.0,0.00016973,2]
[390527849,1760073055334,-500.0,0.00016973,2]
[390527850,1760073055344,-501.76080862,0.00016973,2]
[390527851,1760073055354,-500.0,0.00016973,2]
[390527852,1760073055363,-500.0,0.00016973,2]
[390527853,1760073055373,-500.0,0.00016973,2]
[390527854,1760073055383,-500.0,0.00016973,2]
[390527855,1760073055393,-500.0,0.00016973,2]
[390527856,1760073055402,-500.86991837,0.00016973,2]
[390527857,1760073055411,-500.0,0.00016973,2]
[390527858,1760073055420,-500.0,0.00016973,2]
[390527859,1760073055430,-500.0,0.00016973,2]
[390527860,1760073055439,-161.86847584,0.00016973,2]
[390527861,1760073055449,-500.0,0.00016973,2]
[390527862,1760073055460,-500.0,0.00016973,2]
[390527863,1760073055472,-500.0,0.00016976,2]
[390527864,1760073055484,-168.3888056,0.00016976,2]
[390527865,1760073055494,-19292.2273969,0.00016976,2]
[390527866,1760073055504,-200.53525832,0.00016985,2]
[390527867,1760073055513,-151.0,0.00016986,2]
[390527868,1760073055523,-1519.0,0.00016986,2]
[390527869,1760073055532,-198.54520826,0.00016986,2]
[390527870,1760073055542,-247.21253277,0.00016986,2]
[390527871,1760073055552,-2000.0,0.00016986,2]
[390527872,1760073055561,-2000.0,0.00016986,2]
[390527873,1760073055571,-2000.0,0.00016986,2]
[390527874,1760073055581,-2000.0,0.00016986,2]
[390527875,1760073055591,-2000.0,0.00016986,2]
[390527876,1760073055600,-2000.0,0.00016986,2]
[390527877,1760073055609,-2000.0,0.00016986,2]
[390527878,1760073055619,-2000.0,0.00016986,2]
[390527879,1760073055628,-2000.0,0.00016986,2]
[390527880,1760073055638,-2000.0,0.00016986,2]
[390527881,1760073055647,-2000.0,0.00016986,2]
[390527882,1760073055656,-2000.0,0.00016986,2]
[390527883,1760073055671,-2000.0,0.00016986,2]
[390527884,1760073055681,-2000.0,0.00016986,2]
[390527885,1760073055691,-2000.0,0.00016986,2]
[390527886,1760073055701,-2000.0,0.00016986,2]
[390527887,1760073055710,-2000.0,0.00016986,2]
[390527888,1760073055720,-2000.0,0.00016986,2]
[390527889,1760073055729,-2000.0,0.00016986,2]
[390527890,1760073055739,-2000.0,0.00016986,2]
[390527891,1760073055748,-2000.0,0.00016986,2]
[390527892,1760073055758,-2000.0,0.00016986,2]
[390527893,1760073055767,-2000.0,0.00016986,2]
[390527894,1760073055776,-2000.0,0.00016986,2]
[390527895,1760073055786,-2000.0,0.00016986,2]
[390527896,1760073055795,-2000.0,0.00016986,2]
[390527897,1760073055804,-2000.0,0.00016986,2]
[390527898,1760073055813,-2000.0,0.00016986,2]
[390527899,1760073056004,-2000.0,0.00016986,2]
[390527900,1760073056013,-2000.0,0.00016986,2]
[390527901,1760073056023,-2000.0,0.00016986,2]
[390527902,1760073056033,-2000.0,0.00016986,2]
[390527903,1760073056042,-2000.0,0.00016986,2]
[390527904,1760073056051,-808.75,0.00016986,2]
[390527905,1760073056061,-1000.0,0.00016986,2]
[390527906,1760073056070,-455.183,0.00016986,2]
[390527907,1760073056080,-509.76719434,0.00016986,2]
[390527908,1760073056090,-505.39857899,0.00016986,2]
[390527909,1760073056100,-500.0,0.00016986,2]
[390527910,1760073056109,-500.0,0.00016986,2]
[390527911,1760073056118,-500.0,0.00016986,2]
[390527912,1760073056127,-500.0,0.00016986,2]
[390527913,1760073056136,-500.0,0.00016986,2]
[390527914,1760073056145,-500.0,0.00016986,2]
[390527915,1760073056155,-500.0,0.00016986,2]
[390527916,1760073056164,-896.78,0.00016986,2]
[390527917,1760073056173,-502.85873749,0.00016986,2]
[390527918,1760073056183,-1025.52,0.00016986,2]
[390527919,1760073056192,-500.0,0.00016986,2]
[390527920,1760073056202,-500.0,0.00016986,2]
[390527921,1760073056211,-500.0,0.00016986,2]
[390527922,1760073056220,-500.0,0.00016986,2]
[390527923,1760073056229,-500.0,0.00016986,2]
[390527924,1760073056240,-500.0,0.00016986,2]
[390527925,1760073056249,-500.0,0.00016986,2]
[390527926,1760073056261,-500.0,0.00016986,2]
[390527927,1760073056270,-500.0,0.00016986,2]
[390527928,1760073056280,-512.41,0.00016986,2]
[390527929,1760073056291,-500.0,0.00016986,2]
[390527930,1760073056302,-500.0,0.00016986,2]
[390527931,1760073056312,-281.44631974,0.00016986,2]
[390527932,1760073056322,-500.0,0.00016986,2]
[390527933,1760073056331,-500.0,0.00016986,2]
[390527934,1760073056339,-500.0,0.00016986,2]
[390527935,1760073056349,-500.0,0.00016986,2]
[390527936,1760073056358,-500.0,0.00016986,2]
[390527937,1760073056367,-500.0,0.00016986,2]
[390527938,1760073056377,-500.0,0.00016986,2]
[390527939,1760073056388,-500.0,0.00016986,2]
[390527940,1760073056398,-247.62573965,0.00016986,2]
[390527941,1760073056409,-500.0,0.00016986,2]
[390527942,1760073056420,-503.80566,0.00016986,2]
[390527943,1760073056431,-500.0,0.00016986,2]
[390527944,1760073056440,-613.47,0.00016986,2]
[390527945,1760073056452,-440.26320699,0.00016986,2]
[390527946,1760073056463,-500.0,0.00016986,2]
[390527947,1760073056472,-500.0,0.00016986,2]
[390527948,1760073056481,-500.0,0.00016986,2]
[390527949,1760073056491,-500.0,0.00016986,2]
[390527950,1760073056499,-500.0,0.00016986,2]
[390527951,1760073056508,-880.64,0.00016986,2]
[390527952,1760073056518,-843.94,0.00016986,2]
[390527953,1760073056527,-500.0,0.00016986,2]
[390527954,1760073056536,-500.61,0.00016986,2]
[390527955,1760073056546,-500.0,0.00016986,2]
[390527956,1760073056555,-585.13614732,0.00016986,2]
[390527957,1760073056564,-200.0,0.00016986,2]
[390527958,1760073056573,-500.0,0.00016986,2]
[390527959,1760073056582,-500.0,0.00016986,2]
[390527960,1760073056591,-500.0,0.00016986,2]
[390527961,1760073056605,-199.27098687,0.00016986,2]
[390527962,1760073056614,-500.0,0.00016986,2]
[390527963,1760073056623,-500.0,0.00016986,2]
[390527964,1760073056632,-500.0,0.00016986,2]
[390527965,1760073056641,-500.0,0.00016986,2]
[390527966,1760073056651,-500.0,0.00016986,2]
[390527967,1760073056660,-500.0,0.00016986,2]
[390527968,1760073056668,-1212.98,0.00016986,2]
[390527969,1760073056678,-500.0,0.00016986,2]
[390527970,1760073056687,-500.0,0.00016986,2]
[390527971,1760073056696,-500.0,0.00016986,2]
[390527972,1760073056705,-500.0,0.00016986,2]
[390527973,1760073056714,-242.78753328,0.00016986,2]
[390527974,1760073056723,-500.0,0.00016986,2]
[390527975,1760073056732,-399.44342891,0.00016986,2]
[390527976,1760073056741,-502.87965002,0.00016986,2]
[390527977,1760073056751,-500.0,0.00016986,2]
[390527978,1760073056760,-500.0,0.00016986,2]
[390527979,1760073056769,-500.0,0.00016986,2]
[390527980,1760073056779,-500.0,0.00016986,2]
[390527981,1760073056789,-503.29990184,0.00016986,2]
[390527982,1760073056798,-500.0,0.00016986,2]
[390527983,1760073056807,-500.0,0.00016986,2]
[390527984,1760073056816,-500.0,0.00016986,2]
[390527985,1760073056826,-500.0,0.00016986,2]
[390527986,1760073056835,-500.0,0.00016986,2]
[390527987,1760073056844,-500.0,0.00016986,2]
[390527988,1760073056853,-500.0,0.00016986,2]
[390527989,1760073056863,-500.0,0.00016986,2]
[390527990,1760073056872,-1092.88,0.00016986,2]
[390527991,1760073056882,-500.0,0.00016986,2]
[390527992,1760073056891,-500.0,0.00016986,2]
[390527993,1760073056900,-500.0,0.00016986,2]
[390527994,1760073056910,-500.0,0.00016986,2]
[390527995,1760073056919,-164.54126561,0.00016986,2]
[390527996,1760073056929,-948.26,0.00016986,2]
[390527997,1760073056938,-500.0,0.00016986,2]
[390527998,1760073056947,-500.0,0.00016986,2]
[390527999,1760073056957,-500.0,0.00016986,2]
[390528000,1760073056967,-500.0,0.00016986,2]
[390528001,1760073056976,-501.49543512,0.00016986,2]
[390528002,1760073056985,-500.0,0.00016986,2]
[390528003,1760073056995,-500.0,0.00016986,2]
[390528004,1760073057004,-500.0,0.00016986,2]
[390528005,1760073057014,-189.29873602,0.00016986,2]
[390528006,1760073057023,-500.0,0.00016986,2]
[390528007,1760073057033,-500.0,0.00016986,2]
[390528008,1760073057042,-252.52752145,0.00016986,2]
[390528009,1760073057052,-500.0,0.00016986,2]
[390528010,1760073057061,-500.0,0.00016986,2]
[390528011,1760073057071,-500.0,0.00016986,2]
[390528012,1760073057081,-500.0,0.00016986,2]
[390528013,1760073057091,-500.0,0.00016986,2]
[390528014,1760073057100,-337.15619982,0.00016986,2]
[390528015,1760073057110,-500.0,0.00016986,2]
[390528016,1760073057119,-500.0,0.00016986,2]
[390528017,1760073057128,-500.0,0.00016986,2]
[390528018,1760073057138,-500.0,0.00016986,2]
[390528019,1760073057147,-500.0,0.00016986,2]
[390528020,1760073057156,-500.0,0.00016986,2]
[390528021,1760073057166,-500.0,0.00016986,2]
[390528022,1760073057176,-500.0,0.00016986,2]
[390528023,1760073057185,-500.0,0.00016986,2]
[390528024,1760073057195,-500.0,0.00016986,2]
[390528025,1760073057204,-500.0,0.00016986,2]
[390528026,1760073057213,-500.0,0.00016986,2]
[390528027,1760073057222,-500.0,0.00016986,2]
[390528028,1760073057232,-500.0,0.00016986,2]
[390528029,1760073057241,-500.0,0.00016986,2]
[390528030,1760073057251,-500.0,0.00016986,2]
[390528031,1760073057260,-500.0,0.00016986,2]
[390528032,1760073057269,-500.0,0.00016986,2]
[390528033,1760073057278,-500.0,0.00016986,2]
[390528034,1760073057288,-500.0,0.00016986,2]
[390528035,1760073057297,-500.0,0.00016986,2]
[390528036,1760073057307,-500.0,0.00016986,2]
[390528037,1760073057316,-500.0,0.00016986,2]
[390528038,1760073057325,-500.44093117,0.00016986,2]
[390528039,1760073057334,-500.0,0.00016986,2]
[390528040,1760073057344,-500.0,0.00016986,2]
[390528041,1760073057353,-500.0,0.00016986,2]
[390528042,1760073057362,-1300.53,0.00016986,2]
[390528043,1760073057371,-550.15,0.00016986,2]
[390528044,1760073057381,-1034.78,0.00016986,2]
[390528045,1760073057390,-500.0,0.00016986,2]
[390528046,1760073057400,-500.0,0.00016986,2]
[390528047,1760073057409,-500.87475987,0.00016986,2]
[390528048,1760073057418,-500.0,0.00016986,2]
[390528049,1760073057427,-500.0,0.00016986,2]
[390528050,1760073057436,-500.0,0.00016986,2]
[390528051,1760073057446,-500.0,0.00016986,2]
[390528052,1760073057455,-7851.8,0.00016986,2]
[390528053,1760073057464,-500.0,0.00016986,2]
[390528054,1760073057473,-500.0,0.00016986,2]
[390528055,1760073057483,-500.0,0.00016986,2]
[390528056,1760073057492,-502.97479486,0.00016986,2]
[390528057,1760073057501,-500.0,0.00016986,2]
[390528058,1760073057510,-1314.09,0.00016986,2]
[390528059,1760073057519,-500.0,0.00016986,2]
[390528060,1760073057528,-500.0,0.00016986,2]
[390528061,1760073057537,-504.06460321,0.00016986,2]
[390528062,1760073057546,-500.0,0.00016986,2]
[390528063,1760073057555,-500.0,0.00016986,2]
[390528064,1760073057564,-500.66305719,0.00016986,2]
[390528065,1760073057573,-500.0,0.00016986,2]
[390528066,1760073057582,-500.0,0.00016986,2]
[390528067,1760073057592,-500.0,0.00016986,2]
[390528068,1760073057603,-529.63,0.00016986,2]
[390528069,1760073057612,-500.0,0.00016986,2]
[390528070,1760073057622,-500.0,0.00016986,2]
[390528071,1760073057631,-500.0,0.00016986,2]
[390528072,1760073057640,-500.0,0.00016986,2]
[390528073,1760073057649,-983.84,0.00016986,2]
[390528074,1760073057658,-500.0,0.00016986,2]
[390528075,1760073057667,-500.0,0.00016986,2]
[390528076,1760073057678,-502.03919439,0.00016986,2]
[390528077,1760073057688,-500.0,0.00016986,2]
[390528078,1760073057697,-500.0,0.00016986,2]
[390528079,1760073057706,-500.0,0.00016986,2]
[390528080,1760073057715,-500.0,0.00016986,2]
[390528081,1760073057724,-501.82410616,0.00016986,2]
[390528082,1760073057734,-500.0,0.00016986,2]
[390528083,1760073057743,-500.0,0.00016986,2]
[390528084,1760073057752,-500.0,0.00016986,2]
[390528085,1760073057762,-3527.12,0.00016986,2]
[390528086,1760073057771,-500.0,0.00016986,2]
[390528087,1760073057780,-500.0,0.00016986,2]
[390528088,1760073057789,-500.0,0.00016986,2]
[390528089,1760073057798,-500.0,0.00016986,2]
[390528090,1760073057807,-500.0,0.00016986,2]
[390528091,1760073057816,-500.0,0.00016986,2]
[390528092,1760073057826,-500.0,0.00016986,2]
[390528093,1760073057835,-222.46611655,0.00016986,2]
[390528094,1760073057844,-500.0,0.00016986,2]
[390528095,1760073057853,-6219.03,0.00016986,2]
[390528096,1760073057863,-501.36818589,0.00016986,2]
[390528097,1760073057873,-2423.98,0.00016986,2]
[390528098,1760073057882,-500.0,0.00016986,2]
[390528099,1760073057891,-500.0,0.00016986,2]
[390528100,1760073057900,-500.0,0.00016986,2]
[390528101,1760073057909,-1599.0,0.00016986,2]
[390528102,1760073057918,-894.65,0.00016986,2]
[390528103,1760073057927,-500.0,0.00016986,2]
[390528104,1760073057937,-500.0,0.00016986,2]
[390528105,1760073057948,-500.0,0.00016986,2]
[390528106,1760073057957,-500.0,0.00016986,2]
[390528107,1760073057967,-501.76680069,0.00016986,2]
[390528108,1760073057976,-3689.38,0.00016986,2]
[390528109,1760073057986,-970.99,0.00016986,2]
[390528110,1760073057995,-500.0,0.00016986,2]
[390528111,1760073058005,-500.0,0.00016986,2]
[390528112,1760073058014,-937.72,0.00016986,2]
[390528113,1760073058025,-501.09598001,0.00016986,2]
[390528114,1760073058036,-500.0,0.00016986,2]
[390528115,1760073058047,-500.0,0.00016986,2]
[390528116,1760073058056,-500.0,0.00016986,2]
[390528117,1760073058066,-5374.97,0.00016986,2]
[390528118,1760073058075,-500.0,0.00016986,2]
[390528119,1760073058085,-500.0,0.00016986,2]
[390528120,1760073058095,-500.0,0.00016986,2]
[390528121,1760073058104,-1179.05,0.00016986,2]
[390528122,1760073058113,-500.0,0.00016986,2]
[390528123,1760073058123,-500.0,0.00016986,2]
[390528124,1760073058132,-1091.46,0.00016986,2]
[390528125,1760073058142,-481.31449246,0.00016986,2]
[390528126,1760073058151,-500.0,0.00016986,2]
[390528127,1760073058161,-500.0,0.00016986,2]
[390528128,1760073058170,-669.98,0.00016986,2]
[390528129,1760073058180,-500.0,0.00016986,2]
[390528130,1760073058190,-840.06,0.00016986,2]
[390528131,1760073058199,-1569.85,0.00016986,2]
[390528132,1760073058208,-785.66,0.00016986,2]
[390528133,1760073058217,-626.12,0.00016986,2]
[390528134,1760073058227,-500.0,0.00016986,2]
[390528135,1760073058236,-500.0,0.00016986,2]
[390528136,1760073058245,-1455.99,0.00016986,2]
[390528137,1760073058254,-500.0,0.00016986,2]
[390528138,1760073058264,-500.0,0.00016986,2]
[390528139,1760073058273,-1180.58,0.00016986,2]
[390528140,1760073058282,-961.78,0.00016986,2]
[390528141,1760073058293,-500.0,0.00016986,2]
[390528142,1760073058302,-500.0,0.00016986,2]
[390528143,1760073058311,-748.07,0.00016986,2]
[390528144,1760073058321,-500.0,0.00016986,2]
[390528145,1760073058330,-637.86,0.00016986,2]
[390528146,1760073058342,-500.0,0.00016986,2]
[390528147,1760073058466,-500.0,0.00016986,2]
[390528148,1760073058476,-500.0,0.00016986,2]
[390528149,1760073058486,-500.0,0.00016986,2]
[390528150,1760073058496,-500.0,0.00016986,2]
[390528151,1760073058505,-500.0,0.00016986,2]
[390528152,1760073058514,-322.9958514,0.00016986,2]
[390528153,1760073058523,-500.0,0.00016986,2]
[390528154,1760073058533,-500.0,0.00016986,2]
[390528155,1760073058543,-500.0,0.00016986,2]
[390528156,1760073058553,-1208.26,0.00016986,2]
[390528157,1760073058562,-4376.73,0.00016986,2]
[390528158,1760073058572,-840.96,0.00016986,2]
[390528159,1760073058580,-501.11596704,0.00016986,2]
[390528160,1760073058590,-500.0,0.00016986,2]
[390528161,1760073058604,-4407.34,0.00016986,2]
[390528162,1760073058614,-500.0,0.00016986,2]
[390528163,1760073058623,-500.0,0.00016986,2]
[390528164,1760073058632,-500.0,0.00016986,2]
[390528165,1760073058642,-500.0,0.00016986,2]
[390528166,1760073058651,-1127.42,0.00016986,2]
[390528167,1760073058660,-603.19,0.00016986,2]
[390528168,1760073058670,-687.76,0.00016986,2]
[390528169,1760073058681,-500.0,0.00016986,2]
[390528170,1760073058690,-500.0,0.00016986,2]
[390528171,1760073058699,-500.0,0.00016986,2]
[390528172,1760073058709,-500.0,0.00016986,2]
[390528173,1760073058719,-501.07654025,0.00016986,2]
[390528174,1760073058729,-501.5660037,0.00016986,2]
[390528175,1760073058739,-500.0,0.00016986,2]
[390528176,1760073058748,-842.61,0.00016986,2]
[390528177,1760073058757,-500.0,0.00016986,2]
[390528178,1760073058766,-500.0,0.00016986,2]
[390528179,1760073058776,-502.10397334,0.00016986,2]
[390528180,1760073058785,-500.0,0.00016986,2]
[390528181,1760073058795,-2177.95,0.00016986,2]
[390528182,1760073058805,-501.66725245,0.00016986,2]
[390528183,1760073058815,-500.0,0.00016986,2]
[390528184,1760073058825,-500.0,0.00016986,2]
[390528185,1760073058834,-500.0,0.00016986,2]
[390528186,1760073058843,-500.0,0.00016986,2]
[390528187,1760073058852,-500.67279678,0.00016986,2]
[390528188,1760073058861,-445.02304004,0.00016986,2]
[390528189,1760073058870,-500.0,0.00016986,2]
[390528190,1760073058879,-500.0,0.00016986,2]
[390528191,1760073058889,-500.0,0.00016986,2]
[390528192,1760073058898,-500.0,0.00016986,2]
[390528193,1760073058907,-5850.05,0.00016986,2]
[390528194,1760073058916,-501.79847167,0.00016986,2]
[390528195,1760073058928,-500.0,0.00016986,2]
[390528196,1760073058937,-501.18658578,0.00016986,2]
[390528197,1760073058947,-500.0,0.00016986,2]
[390528198,1760073058956,-500.0,0.00016986,2]
[390528199,1760073058967,-500.0,0.00016986,2]
[390528200,1760073058976,-500.0,0.00016986,2]
[390528201,1760073058986,-3149.72,0.00016986,2]
[390528202,1760073058995,-1305.47,0.00016986,2]
[390528203,1760073059005,-500.0,0.00016986,2]
[390528204,1760073059015,-501.57742464,0.00016986,2]
[390528205,1760073059024,-500.0,0.00016986,2]
[390528206,1760073059033,-500.82750566,0.00016986,2]
[390528207,1760073059042,-500.0,0.00016986,2]
[390528208,1760073059051,-500.0,0.00016986,2]
[390528209,1760073059061,-1011.22,0.00016986,2]
[390528210,1760073059070,-500.0,0.00016986,2]
[390528211,1760073059079,-501.87926337,0.00016986,2]
[390528212,1760073059088,-1404.53,0.00016986,2]
[390528213,1760073059097,-500.0,0.00016986,2]
[390528214,1760073059106,-826.8,0.00016986,2]
[390528215,1760073059116,-500.0,0.00016986,2]
[390528216,1760073059125,-500.0,0.00016986,2]
[390528217,1760073059134,-849.84,0.00016986,2]
[390528218,1760073059143,-813.97,0.00016986,2]
[390528219,1760073059152,-2544.55,0.00016986,2]
[390528220,1760073059162,-502.33835754,0.00016986,2]
[390528221,1760073059171,-500.0,0.00016986,2]
[390528222,1760073059180,-500.0,0.00016986,2]
[390528223,1760073059189,-501.64170303,0.00016986,2]
[390528224,1760073059198,-500.0,0.00016986,2]
[390528225,1760073059207,-1011.01,0.00016986,2]
[390528226,1760073059217,-1923.9,0.00016986,2]
[390528227,1760073059229,-698.81,0.00016986,2]
[390528228,1760073059241,-502.92534349,0.00016986,2]
[390528229,1760073059250,-1236.4,0.00016986,2]
[390528230,1760073059259,-501.81590937,0.00016986,2]
[390528231,1760073059268,-500.0,0.00016986,2]
[390528232,1760073059282,-500.0,0.00016986,2]
[390528233,1760073059291,-536.43,0.00016986,2]
[390528234,1760073059300,-618.51,0.00016986,2]
[390528235,1760073059310,-661.1,0.00016986,2]
[390528236,1760073059319,-500.0,0.00016986,2]
[390528237,1760073059328,-500.0,0.00016986,2]
[390528238,1760073059338,-500.0,0.00016986,2]
[390528239,1760073059347,-500.0,0.00016986,2]
[390528240,1760073059356,-782.42,0.00016986,2]
[390528241,1760073059365,-500.0,0.00016986,2]
[390528242,1760073059376,-322.11263561,0.00016986,2]
[390528243,1760073059385,-500.0,0.00016986,2]
[390528244,1760073059394,-501.10395963,0.00016986,2]
[390528245,1760073059404,-500.0,0.00016986,2]
[390528246,1760073059415,-157.757348,0.00016986,2]
[390528247,1760073059424,-2369.71,0.00016986,2]
[390528248,1760073059434,-707.25,0.00016986,2]
[390528249,1760073059442,-539.06,0.00016986,2]
[390528250,1760073059451,-1042.97,0.00016986,2]
[390528251,1760073059461,-500.0,0.00016986,2]
[390528252,1760073059470,-500.0,0.00016986,2]
[390528253,1760073059479,-2000.7,0.00016986,2]
[390528254,1760073059488,-791.06,0.00016986,2]
[390528255,1760073059497,-500.0,0.00016986,2]
[390528256,1760073059506,-500.0,0.00016986,2]
[390528257,1760073059515,-1747.02,0.00016986,2]
[390528258,1760073059524,-500.9515037,0.00016986,2]
[390528259,1760073059533,-500.0,0.00016986,2]
[390528260,1760073059542,-502.38203244,0.00016986,2]
[390528261,1760073059551,-500.0,0.00016986,2]
[390528262,1760073059560,-500.0,0.00016986,2]
[390528263,1760073059570,-3755.62,0.00016986,2]
[390528264,1760073059579,-500.0,0.00016986,2]
[390528265,1760073059589,-500.0,0.00016986,2]
[390528266,1760073059602,-500.0,0.00016986,2]
[390528267,1760073059611,-500.0,0.00016986,2]
[390528268,1760073059621,-500.0,0.00016986,2]
[390528269,1760073059629,-500.0,0.00016986,2]
[390528270,1760073059638,-500.0,0.00016986,2]
[390528271,1760073059648,-500.0,0.00016986,2]
[390528272,1760073059657,-4291.06445377,0.00017,2]
[390528273,1760073059666,-199.649929,0.00017,4]
[390528274,1760073059677,-199.649929,0.00017021,2]
[390528275,1760073059686,-461.62164456,0.00017028,2]
[390528276,1760073059695,-168.0,0.00017036,2]
[390528277,1760073059704,-151.0,0.000171,2]
[390528278,1760073059714,-2836.0,0.00017126,2]
[390528279,1760073059723,-309.55715187,0.00017151,3]
[390528280,1760073059732,-2233.99644808,0.00017153,2]
[390528281,1760073059741,-10648.94712485,0.0001716,2]
[390528282,1760073059750,-160.0,0.00017196,2]
[390528283,1760073059759,-417.15472785,0.00017196,2]
[390528284,1760073059768,-160.0,0.00017196,2]
[390528285,1760073059778,-234.32063665,0.00017196,2]
[390528286,1760073059787,-402.20179238,0.00017196,2]
[390528287,1760073059796,-160.0,0.00017196,2]
[390528288,1760073059805,-160.0,0.00017196,2]
[390528289,1760073059814,-530.11777602,0.000172,2]
[390528290,1760073059824,-1000.0,0.000172,2]
[390528291,1760073059833,-151.0,0.000172,2]
[390528292,1760073059842,-1127.0,0.00017228,2]
[390528293,1760073059852,-500.0,0.0001725,2]
[390528294,1760073059862,-151.0,0.0001726,2]
[390528295,1760073059871,-1519.0,0.0001726,2]
[390528296,1760073059881,-500.0,0.0001726,2]
[390528297,1760073059890,-500.0,0.0001726,2]
[390528298,1760073059900,-500.0,0.0001726,2]
[390528299,1760073059909,-500.0,0.0001726,2]
[390528300,1760073059919,-500.0,0.0001726,2]
[390528301,1760073059929,-500.0,0.0001726,2]
[390528302,1760073059938,-500.0,0.0001726,2]
[390528303,1760073059947,-500.0,0.0001726,2]
[390528304,1760073059956,-896.78,0.0001726,2]
[390528305,1760073059966,-1025.52,0.0001726,2]